fUSD/lending_fUSD_20250414
["ID","MTS","AMOUNT","RATE_DAILY","PERIOD"]
[357947945,1744609840574,-500.0,0.00019452,2]
[357947947,1744609840585,-500.0,0.00019452,2]
[357947949,1744609840594,-500.0,0.00019452,2]
[357947951,1744609840604,-500.0,0.00019452,2]
[357947953,1744609840613,-500.0,0.00019452,2]
[357947955,1744609840623,-500.0,0.00019452,2]
[357947957,1744609840633,-500.0,0.00019452,2]
[357947959,1744609840643,-500.0,0.00019452,2]
[357947961,1744609840652,-500.0,0.00019452,2]
[357947963,1744609840662,-360.50270329,0.00019452,2]
[357947965,1744609840672,-500.0,0.00019452,2]
[357947967,1744609840682,-503.36693648,0.00019452,2]
[357947969,1744609840692,-500.0,0.00019452,2]
[357947971,1744609840702,-367.24,0.00019452,2]
[357947973,1744609840711,-500.0,0.00019452,2]
[357947975,1744609840722,-500.0,0.00019452,2]
[357947978,1744609840740,-500.0,0.00019452,2]
[357947980,1744609840750,-284.63,0.00019452,2]
[357947982,1744609840759,-578.59,0.00019452,2]
[357947983,1744609840769,-500.0,0.00019452,2]
[357947985,1744609840778,-500.0,0.00019452,2]
[357947988,1744609840788,-500.0,0.00019452,2]
[357947989,1744609840798,-500.0,0.00019452,2]
[357947991,1744609840807,-500.0,0.00019452,2]
[357947994,1744609840817,-500.0,0.00019452,2]
[357947996,1744609840827,-560.85,0.00019452,2]
[357947998,1744609840839,-517.48115027,0.00019452,2]
[357948000,1744609840854,-500.0,0.00019452,2]
[357948002,1744609840864,-494.0,0.00019452,2]
[357948004,1744609840875,-546.0031928,0.00019452,2]
[357948006,1744609840885,-500.0,0.00019452,2]
[357948008,1744609840895,-500.0,0.00019452,2]
[357948010,1744609840904,-500.0,0.00019452,2]
[357948011,1744609840913,-431.9608207,0.00019452,2]
[357948013,1744609840924,-521.93,0.00019452,2]
[357948015,1744609840935,-637.56,0.00019452,2]
[357948017,1744609840945,-500.0,0.00019452,2]
[357948019,1744609840954,-500.0,0.00019452,2]
[357948021,1744609840964,-500.0,0.00019452,2]
[357948024,1744609840974,-500.0,0.00019452,2]
[357948025,1744609840984,-556.22,0.00019452,2]
[357948027,1744609840994,-539.1,0.00019452,2]
[357948029,1744609841003,-500.0,0.00019452,2]
[357948031,1744609841013,-500.0,0.00019452,2]
[357948033,1744609841022,-500.0,0.00019452,2]
[357948035,1744609841032,-500.0,0.00019452,2]
[357948037,1744609841041,-500.0,0.00019452,2]
[357948039,1744609841051,-500.0,0.00019452,2]
[357948041,1744609841061,-500.0,0.00019452,2]
[357948043,1744609841070,-245.61140775,0.00019452,2]
[357948045,1744609841079,-797.49,0.00019452,2]
[357948047,1744609841089,-500.0,0.00019452,2]
[357948049,1744609841099,-500.0,0.00019452,2]
[357948051,1744609841109,-226.42801206,0.00019452,2]
[357948053,1744609841118,-500.0,0.00019452,2]
[357948055,1744609841129,-500.0,0.00019452,2]
[357948057,1744609841139,-500.0,0.00019452,2]
[357948059,1744609841148,-500.0,0.00019452,2]
[357948061,1744609841158,-500.0,0.00019452,2]
[357948062,1744609841167,-500.0,0.00019452,2]
[357948063,1744609841177,-500.0,0.00019452,2]
[357948064,1744609841187,-500.0,0.00019452,2]
[357948066,1744609841197,-500.0,0.00019452,2]
[357948068,1744609841206,-521.85,0.00019452,2]
[357948070,1744609841216,-500.0,0.00019452,2]
[357948072,1744609841226,-500.0,0.00019452,2]
[357948074,1744609841236,-412.00349203,0.00019452,2]
[357948076,1744609841246,-351.04,0.00019452,2]
[357948077,1744609841255,-500.0,0.00019452,2]
[357948079,1744609841264,-500.0,0.00019452,2]
[357948081,1744609841274,-500.0,0.00019452,2]
[357948084,1744609841284,-500.0,0.00019452,2]
[357948086,1744609841294,-1693.21,0.00019452,2]
[357948087,1744609841304,-500.0,0.00019452,2]
[357948089,1744609841313,-500.0,0.00019452,2]
[357948091,1744609841323,-500.0,0.00019452,2]
[357948093,1744609841332,-500.0,0.00019452,2]
[357948096,1744609841343,-500.0,0.00019452,2]
[357948098,1744609841353,-500.0,0.00019452,2]
[357948100,1744609841363,-348.15617624,0.00019452,2]
[357948102,1744609841373,-385.21746298,0.00019452,2]
[357948104,1744609841382,-509.28,0.00019452,2]
[357948106,1744609841392,-500.0,0.00019452,2]
[357948108,1744609841402,-500.0,0.00019452,2]
[357948110,1744609841412,-177.63962426,0.00019452,2]
[357948111,1744609841421,-500.0,0.00019452,2]
[357948113,1744609841431,-500.0,0.00019452,2]
[357948115,1744609841440,-635.83,0.00019452,2]
[357948117,1744609841450,-500.0,0.00019452,2]
[357948119,1744609841459,-500.0,0.00019452,2]
[357948121,1744609841468,-500.0,0.00019452,2]
[357948123,1744609841478,-500.0,0.00019452,2]
[357948125,1744609841488,-746.1,0.00019452,2]
[357948127,1744609841497,-636.82,0.00019452,2]
[357948129,1744609841507,-500.0,0.00019452,2]
[357948130,1744609841517,-640.49798064,0.00019452,2]
[357948131,1744609841526,-500.0,0.00019452,2]
[357948132,1744609841536,-500.0,0.00019452,2]
[357948133,1744609841545,-500.0,0.00019452,2]
[357948134,1744609841555,-500.0,0.00019452,2]
[357948135,1744609841608,-500.37609689,0.00019452,2]
[357948136,1744609841618,-500.0,0.00019452,2]
[357948137,1744609841628,-500.0,0.00019452,2]
[357948138,1744609841638,-500.0,0.00019452,2]
[357948139,1744609841648,-395.82,0.00019452,2]
[357948140,1744609841658,-500.0,0.00019452,2]
[357948141,1744609841667,-500.0,0.00019452,2]
[357948142,1744609841677,-500.0,0.00019452,2]
[357948143,1744609841686,-500.0,0.00019452,2]
[357948144,1744609841696,-516.30667691,0.00019452,2]
[357948145,1744609841705,-526.79743362,0.00019452,2]
[357948146,1744609841715,-560.52572256,0.00019452,2]
[357948147,1744609841724,-603.04850446,0.00019452,2]
[357948148,1744609841734,-500.0,0.00019452,2]
[357948149,1744609841743,-500.0,0.00019452,2]
[357948150,1744609841753,-570.6,0.00019452,2]
[357948151,1744609841762,-500.0,0.00019452,2]
[357948152,1744609841772,-500.0,0.00019452,2]
[357948153,1744609841782,-592.27509893,0.00019452,2]
[357948154,1744609841792,-500.0,0.00019452,2]
[357948155,1744609841802,-500.0,0.00019452,2]
[357948156,1744609841811,-274.79284462,0.00019452,2]
[357948157,1744609841821,-392.12241673,0.00019452,2]
[357948158,1744609841831,-608.26,0.00019452,2]
[357948159,1744609841843,-505.07611106,0.00019452,2]
[357948160,1744609841856,-500.0,0.00019452,2]
[357948161,1744609841865,-500.0,0.00019452,2]
[357948162,1744609841876,-500.0,0.00019452,2]
[357948163,1744609841887,-500.0,0.00019452,2]
[357948164,1744609841896,-500.0,0.00019452,2]
[357948165,1744609841906,-500.0,0.00019452,2]
[357948166,1744609841915,-341.50357681,0.00019452,2]
[357948167,1744609842136,-1702.17356154,0.00019452,2]
[357948168,1744609842147,-500.0,0.00019452,2]
[357948169,1744609842157,-500.0,0.00019452,2]
[357948170,1744609842167,-165.57,0.00019452,2]
[357948171,1744609842176,-357.22,0.00019452,2]
[357948172,1744609842185,-500.0,0.00019452,2]
[357948173,1744609842194,-500.0,0.00019452,2]
[357948174,1744609842203,-542.8,0.00019452,2]
[357948175,1744609842214,-500.0,0.00019452,2]
[357948176,1744609842223,-500.0,0.00019452,2]
[357948177,1744609842233,-520.91107147,0.00019452,2]
[357948178,1744609842242,-500.0,0.00019452,2]
[357948179,1744609842252,-633.89,0.00019452,2]
[357948180,1744609842262,-500.0,0.00019452,2]
[357948181,1744609842271,-500.0,0.00019452,2]
[357948182,1744609842280,-445.43,0.00019452,2]
[357948183,1744609842290,-500.0,0.00019452,2]
[357948184,1744609842300,-500.0,0.00019452,2]
[357948185,1744609842311,-204.43175171,0.00019452,2]
[357948186,1744609842321,-500.0,0.00019452,2]
[357948187,1744609842334,-500.0,0.00019452,2]
[357948188,1744609842344,-500.0,0.00019452,2]
[357948189,1744609842354,-500.0,0.00019452,2]
[357948190,1744609842364,-500.0,0.00019452,2]
[357948191,1744609842375,-793.91,0.00019452,2]
[357948192,1744609842387,-500.0,0.00019452,2]
[357948193,1744609842397,-500.0,0.00019452,2]
[357948194,1744609842406,-500.0,0.00019452,2]
[357948195,1744609842416,-10815.2,0.00019452,2]
[357948196,1744609842426,-641.93,0.00019452,2]
[357948197,1744609842436,-212.46542375,0.00019452,2]
[357948198,1744609842454,-294.09177355,0.00019452,2]
[357948199,1744609842463,-152.24,0.00019452,2]
[357948200,1744609842473,-500.0,0.00019452,2]
[357948201,1744609842483,-501.87989479,0.00019473,2]
[357948202,1744609842493,-500.0,0.00019473,2]
[357948203,1744609842502,-509.08900326,0.00019473,2]
[357948204,1744609842511,-29738.01690747,0.00019494,2]
[357948205,1744609842521,-500.0,0.000195,2]
[357948206,1744609842530,-150.0,0.000195,2]
[357948207,1744609842541,-502.33840684,0.00019535,2]
[357948208,1744609842551,-1068.71904215,0.00019535,2]
[357948209,1744609842560,-833.66416215,0.00019571,2]
[357948210,1744609842570,-502.33840684,0.00019626,2]
[357948211,1744609842579,-1068.71904215,0.00019626,2]
[357948212,1744609842589,-1515.06874133,0.00019626,2]
[357948213,1744609842598,-500.0,0.00019699,2]
[357948214,1744609842607,-4672.662211,0.0001971,2]
[357948215,1744609842619,-5799.06923783,0.0001971,2]
[357948216,1744609842634,-605.38108779,0.0001971,2]
[357948217,1744609842646,-419.229999,0.0001971,2]
[357948218,1744609842789,-1342.42213309,0.0001971,2]
[357948219,1744609842821,-2553.551,0.0001971,2]
[357948220,1744609842845,-435.38038272,0.0001971,2]
[357948222,1744609842858,-9740.07039935,0.0001971,2]
[357948223,1744609842868,-9863.10836463,0.00019715,2]
[357948226,1744609842879,-502.33840684,0.00019717,2]
[357948228,1744609842890,-1068.71904215,0.00019717,2]
[357948229,1744609842901,-500.0,0.00019726,2]
[357948231,1744609842911,-563.02,0.00019726,2]
[357948233,1744609842921,-500.0,0.00019726,2]
[357948234,1744609842931,-409.23,0.00019726,2]
[357948236,1744609842940,-527.97,0.00019726,2]
[357948237,1744609842950,-500.0,0.00019726,2]
[357948239,1744609842959,-500.0,0.00019726,2]
[357948241,1744609842969,-500.0,0.00019726,2]
[357948244,1744609842979,-500.0,0.00019726,2]
[357948246,1744609842988,-500.0,0.00019726,2]
[357948248,1744609842997,-270.47,0.00019726,2]
[357948250,1744609843007,-500.0,0.00019726,2]
[357948252,1744609843017,-500.0,0.00019726,2]
[357948254,1744609843026,-500.0,0.00019726,2]
[357948255,1744609843036,-500.0,0.00019726,2]
[357948257,1744609843046,-500.0,0.00019726,2]
[357948259,1744609843056,-500.0,0.00019726,2]
[357948261,1744609843066,-357.3,0.00019726,2]
[357948263,1744609843076,-500.0,0.00019726,2]
[357948265,1744609843085,-500.0,0.00019726,2]
[357948267,1744609843095,-500.0,0.00019726,2]
[357948269,1744609843105,-495.69,0.00019726,2]
[357948271,1744609843115,-500.0,0.00019726,2]
[357948273,1744609843125,-213.89587466,0.00019726,2]
[357948274,1744609843135,-500.0,0.00019726,2]
[357948275,1744609843145,-500.0,0.00019726,2]
[357948276,1744609843155,-500.0,0.00019726,2]
[357948277,1744609843165,-500.0,0.00019726,2]
[357948278,1744609843175,-167.4,0.00019726,2]
[357948279,1744609843185,-500.0,0.00019726,2]
[357948280,1744609843195,-203.6,0.00019726,2]
[357948281,1744609843205,-156.88925039,0.00019726,2]
[357948282,1744609843215,-594.14,0.00019726,2]
[357948283,1744609843226,-500.0,0.00019726,2]
[357948284,1744609843235,-500.0,0.00019726,2]
[357948285,1744609843245,-500.0,0.00019726,2]
[357948286,1744609843255,-500.0,0.00019726,2]
[357948287,1744609843264,-500.0,0.00019726,2]
[357948288,1744609843274,-500.0,0.00019726,2]
[357948289,1744609843284,-500.0,0.00019726,2]
[357948290,1744609843294,-500.0,0.00019726,2]
[357948291,1744609843304,-500.0,0.00019726,2]
[357948292,1744609843314,-500.0,0.00019726,2]
[357948293,1744609843323,-500.0,0.00019726,2]
[357948294,1744609843333,-500.0,0.00019726,2]
[357948295,1744609843343,-500.0,0.00019726,2]
[357948296,1744609843353,-500.0,0.00019726,2]
[357948297,1744609843363,-500.0,0.00019726,2]
[357948298,1744609843373,-500.0,0.00019726,2]
[357948299,1744609843383,-500.0,0.00019726,2]
[357948300,1744609843393,-621.71,0.00019726,2]
[357948301,1744609843404,-171.5,0.00019726,2]
[357948302,1744609843414,-500.0,0.00019726,2]
[357948303,1744609843424,-151.16,0.00019726,2]
[357948304,1744609843433,-500.0,0.00019726,2]
[357948305,1744609843443,-319.11,0.00019726,2]
[357948306,1744609843452,-797.49,0.00019726,2]
[357948307,1744609843462,-500.0,0.00019726,2]
[357948308,1744609843472,-500.0,0.00019726,2]
[357948309,1744609843482,-500.0,0.00019726,2]
[357948310,1744609843492,-225.97,0.00019726,2]
[357948311,1744609843501,-500.0,0.00019726,2]
[357948312,1744609843511,-500.0,0.00019726,2]
[357948313,1744609843520,-179.04274912,0.00019726,2]
[357948314,1744609843530,-500.0,0.00019726,2]
[357948315,1744609843540,-481.77253916,0.00019726,2]
[357948316,1744609843549,-500.0,0.00019726,2]
[357948317,1744609843559,-500.0,0.00019726,2]
[357948318,1744609843569,-500.0,0.00019726,2]
[357948319,1744609843579,-500.0,0.00019726,2]
[357948320,1744609843589,-500.0,0.00019726,2]
[357948321,1744609843599,-500.0,0.00019726,2]
[357948322,1744609843609,-500.0,0.00019726,2]
[357948323,1744609843620,-500.0,0.00019726,2]
[357948324,1744609843631,-364.53191025,0.00019726,2]
[357948325,1744609843641,-500.0,0.00019726,2]
[357948326,1744609843651,-509.28,0.00019726,2]
[357948327,1744609843660,-500.0,0.00019726,2]
[357948328,1744609843670,-500.0,0.00019726,2]
[357948329,1744609843680,-500.0,0.00019726,2]
[357948330,1744609843690,-500.0,0.00019726,2]
[357948331,1744609843699,-635.83,0.00019726,2]
[357948332,1744609843710,-500.0,0.00019726,2]
[357948333,1744609843719,-500.0,0.00019726,2]
[357948334,1744609843729,-500.0,0.00019726,2]
[357948336,1744609843739,-746.1,0.00019726,2]
[357948338,1744609843748,-500.0,0.00019726,2]
[357948340,1744609843758,-500.0,0.00019726,2]
[357948343,1744609843768,-387.17664267,0.00019726,2]
[357948345,1744609843777,-331.46,0.00019726,2]
[357948346,1744609843787,-233.48,0.00019726,2]
[357948347,1744609843796,-500.0,0.00019726,2]
[357948348,1744609843806,-500.0,0.00019726,2]
[357948349,1744609843816,-500.0,0.00019726,2]
[357948350,1744609843826,-500.0,0.00019726,2]
[357948351,1744609843836,-500.0,0.00019726,2]
[357948352,1744609843847,-500.0,0.00019726,2]
[357948353,1744609843858,-500.0,0.00019726,2]
[357948354,1744609843868,-500.0,0.00019726,2]
[357948355,1744609843879,-217.16,0.00019726,2]
[357948356,1744609843890,-500.0,0.00019726,2]
[357948357,1744609843900,-232.56,0.00019726,2]
[357948358,1744609843910,-500.0,0.00019726,2]
[357948359,1744609843920,-500.0,0.00019726,2]
[357948360,1744609843932,-500.0,0.00019726,2]
[357948361,1744609843942,-221.22,0.00019726,2]
[357948362,1744609843952,-500.0,0.00019726,2]
[357948363,1744609843962,-248.65664673,0.00019726,2]
[357948364,1744609843972,-500.0,0.00019726,2]
[357948365,1744609843981,-465.51,0.00019726,2]
[357948366,1744609843991,-633.89,0.00019726,2]
[357948367,1744609844001,-500.0,0.00019726,2]
[357948368,1744609844011,-500.0,0.00019726,2]
[357948369,1744609844021,-367.66,0.00019726,2]
[357948370,1744609844031,-500.0,0.00019726,2]
[357948371,1744609844041,-500.0,0.00019726,2]
[357948372,1744609844050,-500.0,0.00019726,2]
[357948373,1744609844060,-500.0,0.00019726,2]
[357948374,1744609844070,-500.0,0.00019726,2]
[357948375,1744609844079,-385.19170554,0.00019726,2]
[357948376,1744609844089,-793.91,0.00019726,2]
[357948377,1744609844099,-577.70552729,0.00019726,2]
[357948378,1744609844110,-500.0,0.00019726,2]
[357948379,1744609844119,-500.0,0.00019726,2]
[357948380,1744609844131,-10815.2,0.00019726,2]
[357948381,1744609844140,-641.93,0.00019726,2]
[357948382,1744609844150,-500.0,0.00019726,2]
[357948383,1744609844160,-451.39579957,0.00019732,2]
[357948384,1744609844170,-833.66416215,0.00019736,2]
[357948385,1744609844180,-9863.10836463,0.00019743,2]
[357948386,1744609844191,-1112.01203674,0.00019751,2]
[357948387,1744609844200,-1112.01203674,0.00019763,2]
[357948388,1744609844210,-362.3720504,0.00019764,2]
[357948389,1744609844220,-451.39579957,0.00019765,2]
[357948390,1744609844230,-853.851,0.00019765,2]
[357948391,1744609844239,-387.32897571,0.00019766,2]
[357948392,1744609844249,-500.0,0.00019772,2]
[357948393,1744609844259,-500.0,0.00019773,2]
[357948394,1744609844269,-11083.60367236,0.00019773,2]
[357948395,1744609844278,-1112.01203674,0.0001979,2]
[357948396,1744609844288,-9863.10836463,0.00019794,2]
[357948397,1744609844298,-1027.201914,0.00019799,2]
[357948398,1744609844307,-100857.30836725,0.000198,2]
[357948399,1744609844317,-502.33840684,0.00019809,2]
[357948400,1744609844327,-1068.71904215,0.00019809,2]
[357948401,1744609844337,-500.0,0.00019863,2]
[357948402,1744609844347,-500.0,0.00019863,2]
[357948403,1744609844357,-500.0,0.00019863,2]
[357948404,1744609844368,-395.96210203,0.00019863,2]
[357948405,1744609844379,-500.0,0.00019863,2]
[357948406,1744609844389,-500.0,0.00019863,2]
[357948407,1744609844400,-500.0,0.00019863,2]
[357948408,1744609844409,-500.0,0.00019863,2]
[357948409,1744609844419,-500.0,0.00019863,2]
[357948410,1744609844429,-500.0,0.00019863,2]
[357948411,1744609844439,-500.0,0.00019863,2]
[357948412,1744609844449,-500.0,0.00019863,2]
[357948413,1744609844459,-500.0,0.00019863,2]
[357948414,1744609844469,-500.0,0.00019863,2]
[357948415,1744609844479,-500.0,0.00019863,2]
[357948416,1744609844489,-600.0,0.00019863,2]
[357948417,1744609844499,-500.0,0.00019863,2]
[357948418,1744609844509,-500.0,0.00019863,2]
[357948419,1744609844519,-550.0,0.00019863,2]
[357948420,1744609844530,-5749.48454875,0.0001988,2]
[357948421,1744609844542,-409.48630944,0.000199,2]
[357948422,1744609844552,-194.36210043,0.000199,2]
[357948423,1744609844562,-833.66416215,0.000199,2]
[357948424,1744609844573,-502.33840684,0.000199,2]
[357948425,1744609844582,-1068.71904215,0.000199,2]
[357948426,1744609844593,-188.96751297,0.000199,2]
[357948427,1744609844603,-8898.0,0.00019973,2]
[357948428,1744609844613,-500.0,0.00019985,2]
[357948429,1744609844623,-315.391311,0.00019986,2]
[357948430,1744609844633,-793.2333819,0.00019986,2]
[357948431,1744609844643,-9526.3982327,0.00019986,2]
[357948432,1744609844654,-880.4051281,0.00019986,2]
[357948433,1744609844664,-26346.1671059,0.00019986,2]
[357948434,1744609844674,-172.2511591,0.00019986,2]
[357948435,1744609844686,-194.12975249,0.0001999,2]
[357948436,1744609844696,-1501.45449669,0.00019998,2]
[357948437,1744609844706,-1328.0,0.00019998,2]
[357948438,1744609844716,-2047.0,0.00019998,2]
[357948439,1744609844726,-1287.0,0.00019998,2]
[357948440,1744609844736,-791.0,0.00019998,2]
[357948441,1744609844747,-1438.0,0.00019998,2]
[357948442,1744609844757,-545.0,0.00019998,2]
[357948443,1744609844766,-907.0,0.00019998,2]
[357948444,1744609844776,-1279.0,0.00019998,2]
[357948445,1744609844787,-630.725,0.00019998,2]
[357948446,1744609844796,-4148.0,0.00019998,2]
[357948447,1744609844806,-150.0,0.00019998,2]
[357948448,1744609844816,-194.0,0.00019998,2]
[357948449,1744609844826,-152.0,0.00019998,2]
[357948450,1744609844837,-2559.774,0.00019998,2]
[357948451,1744609844850,-150.0,0.00019998,2]
[357948452,1744609844861,-402.82047754,0.00019999,2]
[357948453,1744609844871,-300.0,0.00019999,2]
[357948454,1744609844883,-676.03545945,0.00019999,2]
[357948455,1744609844894,-2001.25512709,0.00019999,2]
[357948456,1744609845044,-595.54791246,0.00019999,2]
[357948457,1744609845054,-538.0,0.0002,2]
[357948458,1744609845064,-92736.62594445,0.0002,2]
[357948459,1744609845073,-262.45863438,0.0002,2]
[357948460,1744609845082,-99990.41041517,0.0002,2]
[357948461,1744609845092,-1010.24143362,0.0002,2]
[357948462,1744609845101,-615426.65992936,0.0002,2]
[357948463,1744609845115,-423.11212181,0.0002,2]
[357948464,1744609845127,-3583.06796825,0.0002,2]
[357948465,1744609845139,-402.23064997,0.0002,2]
[357948466,1744609845151,-4863.40739997,0.0002,2]
[357948470,1744609845934,-195.68,0.00019998,2]
[357948471,1744609845944,-308511.27001868,0.0002,2]
[357948472,1744609845962,-567.68652463,0.0002,2]
[357948473,1744609845973,-96750.76803374,0.0002,2]
[357948474,1744609846091,-304.0882524,0.0002,2]
[357948475,1744609846119,-832.193085,0.0002,2]
[357948476,1744609846132,-784.9815,0.0002,2]
[357948477,1744609846144,-1414.157248,0.0002,2]
[357948478,1744609846155,-545.152395,0.0002,2]
[357948479,1744609846166,-909.15451955,0.0002,2]
[357948480,1744609846177,-472.95900005,0.0002,2]
[357948481,1744609846188,-868.354,0.0002,2]
[357948482,1744609846291,-30263.915951,0.0002,2]
[357948493,1744609877604,500.0,0.00018264,2]
[357948494,1744609933469,187.0,0.000182,2]
[357948495,1744609952059,186.58,0.000185,2]
[357948496,1744609957852,500.0,0.00018264,2]
[357948498,1744610092178,1000.0,0.00022,30]
[357948499,1744610324031,755.71,0.00016816,2]
[357948500,1744610364154,700.0,0.00019,6]
[357948501,1744610366245,1500.0,0.000191,6]
[357948502,1744610368338,2300.0,0.000192,7]
[357948503,1744610370415,3000.0,0.000193,7]
[357948504,1744610372493,3800.0,0.000194,7]
[357948505,1744610374581,700.0,0.000195,7]
[357948506,1744610378604,700.0,0.000196,7]
[357948507,1744610380708,700.0,0.000197,7]
[357948508,1744610382787,700.0,0.000198,7]
[357948509,1744610384860,1288.0,0.000199,7]
[357948510,1744610400987,-153.411136,0.0002012,23]
[357948511,1744610401015,-153.411136,0.0002024,23]
[357948512,1744610401048,-153.411136,0.00020325,5]
[357948513,1744610401077,-153.411136,0.0002036,23]
[357948514,1744610401105,-157.870258,0.0002048,23]
[357948515,1744610401134,-153.411136,0.0002048,23]
[357948516,1744610401169,-710.0,0.000205,3]
[357948517,1744610401202,-500.0,0.000205,5]
[357948518,1744610412835,171.657028,0.0002,4]
[357948519,1744610500810,150.0,0.0002,3]
[357948520,1744610610837,10000.0,0.00023,120]
[357948521,1744610634589,10000.0,0.00022,90]
[357948522,1744610643712,10000.0,0.00022,60]
[357948523,1744610668976,10000.0,0.00023,120]
[357948524,1744610669054,15005.34491403,0.000195,3]
[357948525,1744610678256,10000.0,0.00023,120]
[357948526,1744610701835,5590.84,0.00023,120]
[357948527,1744610788458,162.56,0.00018373,2]
[357948528,1744610796858,404.48,0.00018373,2]
[357948529,1744610839436,362.44,0.00018373,2]
[357948530,1744610954519,188.49,0.00018348,2]
[357948534,1744611032241,-150.0,0.0001851,2]
[357948535,1744611032251,-477.17381463,0.00018687,2]
[357948536,1744611032264,-863.65618537,0.00018687,2]
[357948537,1744611032276,-150.0,0.00018754,2]
[357948538,1744611032286,-289.011359,0.00018782,2]
[357948539,1744611032298,-68.988641,0.00018782,2]
[357948540,1744611032309,-1355.9316256,0.00018801,2]
[357948541,1744611032326,-977.6883744,0.00018801,2]
[357948542,1744611032336,-1000.0,0.00018842,2]
[357948543,1744611032347,-250.0,0.00018963,2]
[357948544,1744611032358,-250.0,0.00019,2]
[357948545,1744611032368,-250.0,0.00019,2]
[357948546,1744611032377,-214.6436007,0.00019,2]
[357948547,1744611032387,-300.0,0.00019077,2]
[357948548,1744611032397,-251.16920342,0.00019078,2]
[357948549,1744611032407,-110.3311598,0.00019078,2]
[357948550,1744611032423,-695.8444402,0.00019078,2]
[357948551,1744611032432,-36638.02250745,0.00019078,2]
[357948552,1744611032444,-572.81779255,0.00019078,2]
[357948553,1744611032453,-3595.7506452,0.00019078,2]
[357948554,1744611032465,-11068.878,0.00019078,2]
[357948556,1744611038379,-589.97551441,0.00019078,2]
[357948557,1744611038448,-13163.25181165,0.00019078,2]
[357948558,1744611038458,-755.71,0.0001908,2]
[357948559,1744611038468,-251.16920342,0.00019169,2]
[357948560,1744611038478,-166.88,0.00019172,2]
[357948561,1744611038488,-545.28084151,0.00019178,2]
[357948562,1744611038497,-501.33392206,0.00019178,2]
[357948563,1744611038507,-500.0,0.00019178,2]
[357948564,1744611038517,-503.84499395,0.00019178,2]
[357948565,1744611038526,-511.20304742,0.00019178,2]
[357948566,1744611038535,-500.0,0.00019178,2]
[357948567,1744611038545,-500.0,0.00019178,2]
[357948568,1744611038555,-302.1341821,0.00019178,2]
[357948569,1744611038565,-500.04593764,0.00019178,2]
[357948570,1744611038574,-562.11186947,0.00019178,2]
[357948571,1744611038584,-1448.72,0.00019178,2]
[357948572,1744611038594,-270.47,0.00019178,2]
[357948573,1744611038603,-203.6,0.00019178,2]
[357948574,1744611038613,-495.69,0.00019178,2]
[357948575,1744611038622,-156.88925039,0.00019178,2]
[357948576,1744611038631,-500.0,0.00019178,2]
[357948578,1744611038642,-500.0,0.00019178,2]
[357948580,1744611038654,-500.0,0.00019178,2]
[357948583,1744611038666,-500.0,0.00019178,2]
[357948585,1744611038676,-500.0,0.00019178,2]
[357948587,1744611038686,-151.16,0.00019178,2]
[357948588,1744611038696,-500.0,0.00019178,2]
[357948591,1744611038706,-500.0,0.00019178,2]